bitfinex/quotes_ETHUSD_20260226
["timestamp","ask_amount","ask_price","bid_price","bid_amount"]
[1772133272826,1.12244203,2022.9,2022.2,2.70557281]
[1772133273026,1.39635486,2022.9,2022.2,2.70557281]
[1772133273239,1.23591061,2022.8,2022.2,2.43165998]
[1772133273519,2.35833152,2022.9,2022.2,2.43165998]
[1772133274633,1.23770658,2023.2,2022.3,1.19538325]
[1772133275018,1.12244203,2023.1,2022.3,1.19538325]
[1772133275545,1.18694943,2022.9,2022.3,2.43158976]
[1772133276645,1.23578843,2023.0,2022.3,2.43158976]
[1772133277709,2.42271985,2023.1,2022.4,1.14184624]
[1772133277941,1.18694943,2023.1,2022.4,1.14184624]
[1772133278149,2.42267774,2023.1,2022.4,1.14184624]
[1772133279819,1.20176836,2023.0,2022.4,1.23611473]
[1772133280127,1.20176836,2023.0,2022.4,2.36255033]
[1772133281049,1.20376836,2023.2,2022.5,1.1264356]
[1772133281251,2.43947844,2023.2,2022.5,1.1264356]
[1772133281549,1.20176836,2023.1,2022.5,1.1264356]
[1772133282350,1.23578843,2023.0,2022.5,2.3625019]
[1772133282547,1.20176836,2022.9,2022.2,2.36268457]
[1772133283850,1.20176836,2022.9,2022.1,1.23728906]
[1772133284050,1.20176836,2022.9,2022.2,1.1264356]
[1772133284356,1.20176836,2023.1,2022.4,1.1264356]
[1772133285238,1.20176836,2023.1,2022.4,1.1274356]
[1772133285635,1.20376836,2023.1,2022.4,1.1274356]
[1772133286231,2.43951077,2023.1,2022.5,1.23609394]
[1772133286438,0.002,2023.1,2022.6,1.1264356]
[1772133286950,1.23774135,2023.1,2022.6,1.1264356]
[1772133288438,1.20376836,2023.1,2022.4,1.23714851]
[1772133288647,0.002,2023.1,2022.5,1.1264356]
[1772133290959,1.20376836,2023.1,2022.5,2.36248103]
[1772133291745,1.20376836,2023.1,2022.5,1.1264356]
[1772133291975,1.20376836,2023.1,2022.4,0.001]
[1772133292650,1.15376836,2023.1,2022.4,0.001]
[1772133293042,1.20176836,2022.9,2022.4,0.001]
[1772133295832,2.43767897,2022.8,2022.4,0.001]
[1772133297463,1.23591061,2022.8,2022.4,1.1274356]
[1772133297633,2.43767897,2022.8,2022.4,0.001]
[1772133298036,1.20176836,2022.7,2022.4,0.001]
[1772133298854,1.20176836,2022.7,2022.6,0.001]
[1772133299944,2.43774008,2022.7,2022.6,0.001]
[1772133300259,0.002,2022.9,2022.6,1.1274356]
[1772133300464,0.002,2023.1,2022.7,1.1264356]
[1772133301643,0.002,2023.6,2022.8,1.1264356]
[1772133301952,1.23753007,2023.5,2022.8,1.1264356]
[1772133302154,1.20376836,2023.5,2022.9,2.36228512]
[1772133302547,1.20376836,2023.5,2023.0,1.1264356]
[1772133303655,1.20376836,2023.5,2022.8,2.36234093]
[1772133304058,1.20376836,2023.5,2022.9,1.1264356]
[1772133304270,2.43927889,2023.5,2023.0,1.1264356]
[1772133304455,1.20376836,2023.5,2023.0,1.1264356]
[1772133304774,0.002,2023.5,2023.2,1.1264356]
[1772133305271,1.23496176,2024.4,2023.7,1.1264356]
[1772133305484,1.23481181,2024.6,2023.7,1.1264356]
[1772133305643,1.20176836,2024.5,2023.7,1.1264356]
[1772133306341,2.43670216,2024.4,2023.7,2.36176689]
[1772133307465,1.20176836,2024.3,2023.5,1.1264356]
[1772133308445,1.23502198,2024.3,2023.7,1.1264356]
[1772133308876,1.23495999,2024.4,2023.7,1.1264356]
[1772133309177,1.20176836,2024.4,2023.7,1.1264356]
[1772133309672,1.23491566,2024.5,2023.7,1.1264356]
[1772133310054,2.33456435,2024.5,2023.7,1.1264356]
[1772133310255,1.23491566,2024.5,2023.7,1.1264356]
[1772133310850,0.002,2024.7,2024.1,1.09048598]
[1772133311153,0.002,2024.9,2024.4,1.09048598]
[1772133312753,0.002,2024.9,2024.5,1.2348728]
[1772133312960,0.002,2024.9,2024.5,2.32535878]
[1772133313150,0.002,2024.7,2024.6,1.09048598]
[1772133313480,1.09964869,2025.3,2024.6,1.09048598]
[1772133313680,0.002,2025.2,2024.6,1.09048598]
[1772133313856,0.002,2025.2,2024.8,1.09048598]
[1772133314772,7.43706537,2026.0,2025.2,1.09048598]
[1772133314773,1.2339832,2026.0,2025.2,1.09048598]
[1772133314955,1.09964869,2026.1,2025.2,1.09048598]
[1772133315278,2.33339074,2026.4,2025.4,1.09048598]
[1772133315977,2.33339074,2026.4,2025.1,1.23450693]
[1772133315978,1.09964869,2026.3,2025.2,1.09048598]
[1772133316186,1.09964869,2026.2,2025.2,1.09048598]
[1772133316383,1.09964869,2026.2,2025.1,1.23450693]
[1772133317573,1.09964869,2026.0,2025.1,1.23450693]
[1772133317980,1.09964869,2026.0,2025.1,2.32499291]
[1772133319074,1.09964869,2026.0,2024.9,1.23457377]
[1772133319285,1.09964869,2026.0,2024.7,0.18685624]
[1772133319286,1.09964869,2025.6,2024.7,1.23470513]
[1772133319585,2.33391183,2025.5,2024.7,1.23470513]
[1772133320055,1.09964869,2025.4,2024.7,1.23470513]
[1772133320387,1.09964869,2025.4,2024.5,1.23483484]
[1772133320765,1.2342439,2025.6,2024.7,1.09048598]
[1772133320962,2.33389259,2025.6,2024.7,1.09048598]
[1772133321175,1.09964869,2025.5,2024.8,1.09048598]
[1772133321486,1.09964869,2025.5,2024.6,1.27734222]
[1772133321683,2.33397149,2025.5,2024.7,2.3252368]
[1772133321985,4.93608879,2025.9,2024.9,1.09048598]
[1772133322191,6.93467405,2026.5,2025.4,0.18685624]
[1772133322192,1.09964869,2026.5,2025.4,0.18685624]
[1772133322393,1.9180549,2026.3,2025.1,1.09048598]
[1772133322558,1.9180549,2026.3,2025.0,1.193]
[1772133322559,1.09964869,2026.2,2025.0,1.193]
[1772133322760,1.09964869,2026.2,2025.0,2.28348598]
[1772133322993,1.09964869,2025.9,2025.0,1.193]
[1772133323791,1.09964869,2025.9,2024.7,2.3252368]
[1772133324091,1.09964869,2025.7,2024.7,2.3252368]
[1772133324591,1.09964869,2025.7,2024.8,1.09048598]
[1772133325174,1.09964869,2025.7,2024.8,1.09148598]
[1772133325373,1.10164869,2025.7,2024.8,1.09148598]
[1772133325996,1.09964869,2025.5,2024.8,0.001]
[1772133326292,1.09964869,2025.5,2024.5,2.32631267]
[1772133326724,1.09964869,2025.3,2024.5,0.001]
[1772133326898,6.47031201,2025.6,2024.3,0.001]
[1772133326899,1.09964869,2025.0,2024.3,0.001]
[1772133327263,1.09964869,2024.7,2024.3,0.001]
[1772133327872,1.23481181,2024.6,2024.3,0.001]
[1772133328767,1.09964869,2024.7,2024.3,0.001]
[1772133329066,2.33421659,2025.0,2024.3,0.001]
[1772133329266,1.09964869,2024.9,2024.3,0.001]
[1772133329974,2.33428666,2024.9,2024.3,0.001]
[1772133330293,1.09964869,2024.9,2024.3,0.001]
[1772133330511,1.09964869,2025.5,2024.3,1.09148598]
[1772133330673,6.03704199,2025.4,2024.3,1.09148598]
[1772133331382,1.23432408,2025.4,2024.5,1.27734222]
[1772133331772,2.33397277,2025.4,2024.5,1.27734222]
[1772133332073,1.09964869,2025.3,2024.3,1.23597174]
[1772133332376,1.09964869,2025.2,2024.3,1.23598385]
[1772133333283,1.23432408,2025.4,2024.4,1.09048598]
[1772133333481,1.09964869,2025.3,2024.3,2.32646983]
[1772133333686,1.09964869,2025.3,2024.3,1.23599435]
[1772133333889,1.23620221,2025.7,2024.4,1.09048598]
[1772133334070,1.23620221,2025.7,2024.7,2.32519053]
[1772133334071,1.09964869,2025.5,2024.7,2.32519053]
[1772133334278,1.09964869,2025.5,2024.7,1.23470455]
[1772133334598,1.09964869,2025.5,2024.6,1.23476495]
[1772133334794,1.09964869,2025.5,2024.4,1.23488374]
[1772133335476,1.09964869,2025.2,2024.3,1.23595581]
[1772133335677,1.10084231,2024.9,2024.3,0.001]
[1772133336101,1.23468984,2024.8,2024.3,0.001]
[1772133336470,2.33553215,2024.8,2024.3,0.001]
[1772133336675,1.10084231,2024.7,2024.3,0.001]
[1772133338092,1.23481181,2024.6,2024.3,0.001]
[1772133338300,1.23481181,2024.6,2024.5,0.001]
[1772133339603,1.23481181,2024.6,2024.3,0.001]
[1772133339604,2.31077343,2024.6,2024.3,0.001]
[1772133339994,1.07596162,2024.5,2023.7,1.23532569]
[1772133340309,1.23481181,2024.6,2023.7,1.10054921]
[1772133340814,2.31077343,2024.6,2023.7,1.10054921]
[1772133342613,2.31077343,2024.6,2023.8,2.33584914]
[1772133343390,4.93816008,2025.1,2024.1,1.10054921]
[1772133343720,1.07596162,2025.2,2024.4,0.18685624]
[1772133343919,2.31045402,2025.2,2024.4,0.18685624]
[1772133344397,1.07596162,2025.1,2024.3,1.10054921]
[1772133345734,2.31052952,2025.0,2024.3,1.23499112]
[1772133345934,2.31052952,2025.0,2024.2,1.23500586]
[1772133347751,1.07596162,2024.8,2024.0,2.3357264]
[1772133347922,1.07596162,2024.8,2024.0,1.23517719]
[1772133348949,1.07596162,2024.8,2023.7,1.10054921]
[1772133349145,1.07596162,2024.5,2023.7,1.23534094]
[1772133349841,1.2349338,2024.4,2023.7,1.23534094]
[1772133350654,1.2349338,2024.4,2023.6,1.10054921]
[1772133350655,1.07596162,2024.3,2023.6,1.10054921]
[1772133350819,1.07596162,2024.3,2023.5,1.23545]
[1772133351149,1.07596162,2024.3,2023.4,6.04254386]
[1772133351150,1.07596162,2024.3,2023.9,0.001]
[1772133352008,2.31101744,2024.2,2023.9,0.001]
[1772133352743,2.31059049,2025.0,2024.0,1.10054921]
[1772133352944,1.07596162,2024.8,2024.0,1.10054921]
[1772133354250,1.07596162,2024.8,2024.1,1.23511684]
[1772133354447,1.07596162,2024.8,2024.1,2.33566605]
[1772133355028,2.31067235,2024.8,2024.1,2.33566605]
[1772133355548,1.23466515,2024.9,2024.1,2.33566605]
[1772133356449,6.01430799,2025.0,2024.1,2.33566605]
[1772133356626,1.07596162,2024.9,2024.1,2.33566605]
[1772133357139,1.07596162,2024.9,2024.2,1.10054921]
[1772133357450,2.3104076,2025.2,2024.3,1.10054921]
[1772133357622,1.23643281,2025.3,2024.3,1.10054921]
[1772133357816,2.31239443,2025.3,2024.3,1.10054921]
[1772133358043,2.31239443,2025.3,2024.1,2.60307634]
[1772133358044,1.07596162,2025.1,2024.1,1.23511684]
[1772133358228,1.07596162,2025.1,2024.2,1.10054921]
[1772133358417,1.07596162,2024.9,2024.0,4.94057868]
[1772133359041,1.07596162,2024.9,2024.0,6.04112789]
[1772133359917,1.07596162,2024.9,2024.1,1.10054921]
[1772133360427,6.01423322,2025.2,2024.2,2.33560503]
[1772133360626,2.60440548,2025.3,2024.5,1.10054921]
[1772133360627,0.002,2025.3,2024.5,1.10054921]
[1772133360824,1.23639124,2025.3,2024.6,1.10054921]
[1772133361247,1.23639124,2025.3,2024.3,1.10054921]
[1772133361248,1.07596162,2025.2,2024.3,1.10054921]
[1772133361757,1.07596162,2025.0,2023.9,1.182]
[1772133361931,1.3679595,2025.1,2023.9,2.417232]
[1772133361932,1.07596162,2024.7,2023.9,2.417232]
[1772133362120,1.07596162,2024.7,2023.9,3.51778121]
[1772133362316,1.07596162,2024.7,2023.9,2.33678121]
[1772133362517,1.07596162,2024.5,2023.9,0.001]
[1772133364333,1.07596162,2024.4,2023.7,0.001]
[1772133364497,1.07596162,2023.9,2023.7,0.001]
[1772133364637,6.33509878,2024.3,2023.7,0.001]
[1772133364638,2.311003,2024.3,2023.7,0.001]
[1772133366278,1.07596162,2024.2,2023.7,0.001]
[1772133366652,2.31083442,2024.5,2023.7,0.001]
[1772133366852,1.2348728,2024.5,2023.7,1.10154921]
[1772133367968,1.23468984,2024.8,2023.7,1.10154921]
[1772133368169,1.23468984,2024.8,2023.9,1.10054921]
[1772133368742,1.23468984,2024.8,2024.0,1.23517786]
[1772133368942,1.07596162,2024.7,2023.9,1.23519035]
[1772133371066,1.23481181,2024.6,2023.9,1.13119892]
[1772133371444,2.31711278,2024.6,2023.7,1.23636097]
[1772133372353,2.31711278,2024.6,2023.7,2.14755989]
[1772133372867,2.31711278,2024.6,2023.8,1.13119892]
[1772133373072,6.02101386,2024.9,2024.1,1.13119892]
[1772133373280,2.31697953,2024.9,2024.1,1.13119892]
[1772133374275,1.08230097,2024.8,2024.0,1.23517786]
[1772133374571,1.08230097,2024.8,2024.0,2.36637678]
[1772133374762,1.08230097,2024.8,2024.0,1.23517786]
[1772133375151,1.08230097,2024.6,2023.8,6.25913434]
[1772133375645,1.08230097,2024.6,2023.8,2.55335509]
[1772133376051,1.23475082,2024.7,2023.9,1.13219892]
[1772133376379,6.02130427,2024.8,2023.9,1.13219892]
[1772133376380,0.002,2024.4,2023.9,1.13219892]
[1772133376971,0.002,2024.4,2024.1,1.13119892]
[1772133377157,0.002,2024.9,2024.1,1.13119892]
[1772133377557,0.002,2024.9,2024.3,1.13119892]
[1772133377879,1.08230097,2024.8,2023.7,1.23629993]
[1772133378081,1.08230097,2024.5,2023.7,1.23632044]
[1772133378383,1.08230097,2024.5,2023.7,0.001]
[1772133379681,1.08230097,2024.3,2023.7,0.001]
[1772133380906,0.002,2024.9,2024.3,1.13119892]
[1772133381087,0.002,2024.9,2024.1,3.71471922]
[1772133381410,1.23665455,2024.9,2024.1,3.71471922]
[1772133381609,1.23665455,2024.9,2024.1,3.77580807]
[1772133381610,2.31895552,2024.9,2024.1,3.77580807]
[1772133381905,2.31895552,2024.9,2024.1,1.23508746]
[1772133382110,2.31895552,2024.9,2024.1,2.36628638]
[1772133382111,0.002,2024.9,2024.1,2.36628638]
[1772133382494,1.23664211,2024.9,2024.1,2.36628638]
[1772133383387,2.31894308,2024.9,2024.1,1.23508746]
[1772133383809,1.08430097,2024.9,2024.1,0.18685624]
[1772133384012,2.31893532,2024.9,2024.1,0.18685624]
[1772133384179,2.31893532,2024.9,2023.8,3.67215842]
[1772133384482,1.08230097,2024.8,2023.8,2.40825576]
[1772133384918,1.08230097,2024.7,2023.8,1.173]
[1772133385218,1.08230097,2024.7,2023.8,2.40829629]
[1772133385784,1.08230097,2024.5,2023.8,2.40829629]
[1772133387304,1.23478397,2024.7,2023.8,2.40829629]
[1772133387814,2.31708494,2024.7,2023.8,2.40829629]
[1772133388186,1.08230097,2024.6,2023.8,2.40829629]
[1772133389815,1.08230097,2024.6,2023.9,0.001]
[1772133390110,0.002,2024.3,2023.9,0.18785624]
[1772133390285,0.002,2024.9,2024.1,1.13119892]
[1772133390486,0.002,2024.8,2024.1,1.13119892]
[1772133390991,0.002,2024.8,2024.3,2.49915842]
[1772133391192,0.002,2024.8,2023.9,0.001]
[1772133391193,1.08430097,2024.8,2023.9,0.001]
[1772133391393,1.08230097,2024.7,2023.9,1.23622587]
[1772133391609,1.08230097,2024.7,2023.9,2.36742479]
[1772133392425,2.31707655,2024.7,2023.9,2.36742479]
[1772133394320,1.08230097,2024.6,2023.9,1.23622587]
[1772133394727,1.2348728,2024.5,2023.9,1.23622587]
[1772133395240,1.2348728,2024.5,2023.9,0.001]
[1772133395538,1.08230097,2024.4,2023.9,0.001]
[1772133396417,1.08230097,2024.4,2023.7,0.001]
[1772133396843,1.08696177,2024.2,2023.7,0.001]
[1772133398816,1.08696177,2024.0,2023.7,0.001]
[1772133401752,2.32213998,2024.0,2023.7,0.001]
[1772133404342,1.08696177,2024.0,2023.7,0.001]
[1772133404516,2.38130024,2024.3,2023.7,0.001]
[1772133404836,2.38119197,2024.5,2023.7,2.49295853]
[1772133405024,2.38114763,2024.5,2023.8,1.12399903]
[1772133405219,1.14626963,2024.5,2023.8,1.12399903]
[1772133405421,4.9391193,2024.7,2024.0,1.12308032]
[1772133405422,1.23479493,2024.7,2024.0,1.12308032]
[1772133406038,2.38106456,2024.7,2024.0,1.12308032]
[1772133406237,1.14626963,2024.6,2023.7,1.12408032]
[1772133406431,1.14626963,2024.4,2023.7,0.001]
[1772133407638,1.23484791,2024.6,2023.7,1.12225505]
[1772133407843,2.38111754,2024.6,2023.7,1.12225505]
[1772133408523,2.38111754,2024.6,2023.8,1.23529993]
[1772133408925,2.38111754,2024.6,2023.8,2.35562739]
[1772133411540,1.14626963,2024.5,2023.8,2.35562739]
[1772133412666,1.14626963,2024.5,2023.8,2.10562739]
[1772133413457,1.2349338,2024.4,2023.8,2.10562739]
[1772133415158,1.14626963,2024.3,2023.7,0.001]
[1772133415673,2.38132545,2024.2,2023.7,0.001]
[1772133416376,1.14626963,2024.2,2023.7,0.001]
[1772133416958,1.23498401,2024.4,2023.7,0.001]
[1772133417156,1.23498401,2024.4,2023.7,1.11744805]
[1772133417382,1.23498401,2024.4,2024.0,0.001]
[1772133417562,1.23698401,2024.4,2024.0,0.001]
[1772133419601,1.14626963,2024.3,2024.0,0.001]
[1772133419800,1.14626963,2024.3,2023.8,0.001]
[1772133420090,1.14626963,2024.1,2023.8,0.001]
[1772133422060,2.38325278,2024.4,2023.8,0.001]
[1772133422461,1.14626963,2024.3,2023.8,0.001]
[1772133424186,1.14626963,2024.1,2023.8,0.001]
[1772133425691,2.38130107,2024.3,2023.8,0.001]
[1772133425867,1.2369366,2024.4,2023.8,1.10950473]
[1772133426067,0.002,2024.4,2023.9,1.10850473]
[1772133426370,0.002,2024.4,2024.0,2.34368259]
[1772133426584,0.002,2024.6,2024.2,1.10548722]
[1772133427964,0.002,2024.6,2024.0,1.23517786]
[1772133428293,1.14826963,2024.6,2023.8,2.40129021]
[1772133428480,0.002,2024.6,2024.1,1.10348324]
[1772133429198,0.002,2024.6,2023.9,1.10348324]
[1772133430190,1.04547943,2024.6,2023.8,2.40129021]
[1772133430695,2.27835223,2024.5,2023.8,2.40129021]
[1772133431195,0.002,2024.6,2023.9,1.04496378]
[1772133431491,0.002,2024.6,2024.0,1.04596378]
[1772133431693,0.002,2024.4,2024.0,1.04596378]
[1772133432464,0.002,2024.4,2024.1,1.23511684]
[1772133433790,2.28021837,2024.8,2024.1,2.28008062]
[1772133434382,1.04347943,2024.7,2024.1,1.23511684]
[1772133434989,1.04347943,2024.7,2024.0,0.001]
[1772133435193,1.04347943,2024.5,2024.0,0.001]
[1772133435767,1.04347943,2024.5,2024.0,1.23616632]
[1772133436093,1.04347943,2024.5,2024.0,0.001]
[1772133436290,1.04347943,2024.5,2024.0,1.23616854]
[1772133436999,1.04347943,2024.5,2024.0,1.23617646]
[1772133437187,1.2349338,2024.4,2024.0,0.001]
[1772133438295,1.04347943,2024.4,2024.0,0.001]
[1772133440000,2.27845679,2024.4,2024.0,0.001]
[1772133441492,1.23497736,2024.4,2024.0,0.001]
[1772133441899,2.27838909,2024.5,2024.0,0.001]
[1772133444304,0.002,2024.4,2024.2,0.001]
[1772133444898,0.002,2024.4,2024.0,0.001]
[1772133444899,1.04347943,2024.3,2024.0,0.001]
[1772133447305,2.27851396,2024.3,2024.0,0.001]
[1772133447491,0.002,2024.4,2024.0,0.001]
[1772133448309,1.23694345,2024.4,2024.0,0.001]
[1772133448712,0.002,2024.4,2024.0,0.001]
[1772133449508,1.23693738,2024.4,2024.0,0.001]
[1772133449805,0.002,2024.4,2024.1,1.04496378]
[1772133450010,0.002,2024.6,2024.1,1.04496378]
[1772133450194,0.002,2024.9,2024.4,1.04496378]
[1772133450388,0.002,2025.3,2024.5,1.04496378]
[1772133450592,1.23647051,2025.2,2024.5,1.04496378]
[1772133450794,0.002,2025.2,2024.5,1.04496378]
[1772133450994,0.002,2025.2,2024.7,1.04496378]
[1772133451198,0.002,2025.2,2024.8,1.04496378]
[1772133451396,0.002,2025.2,2024.9,1.23462887]
[1772133453512,1.04547943,2025.2,2024.6,1.23476837]
[1772133453906,0.002,2025.2,2024.6,2.27973215]
[1772133454105,0.002,2025.2,2024.5,1.2348728]
[1772133454111,1.04547943,2025.2,2024.5,1.2348728]
[1772133455024,1.04547943,2025.2,2024.0,2.28110067]
[1772133455591,1.04347943,2025.0,2024.0,2.28110067]
[1772133456222,1.04347943,2025.0,2024.2,0.001]
[1772133456420,1.04547943,2025.0,2024.2,0.001]
[1772133457733,0.002,2025.0,2024.3,0.18685624]
[1772133457893,0.002,2025.2,2024.6,1.02963775]
[1772133458099,0.002,2025.2,2024.7,1.21649399]
[1772133458321,0.002,2025.3,2024.8,2.94525657]
[1772133458515,0.002,2025.3,2024.9,1.02963775]
[1772133459529,1.2363876,2025.3,2024.7,1.21649399]
[1772133459716,1.2363876,2025.3,2024.7,2.45124217]
[1772133460032,1.02825593,2025.2,2024.5,2.40586529]
[1772133461707,4.93802775,2025.2,2024.6,1.04531189]
[1772133461907,2.2646461,2025.3,2024.6,1.04531189]
[1772133463427,1.02825593,2025.2,2024.5,2.40586529]
[1772133463618,1.02825593,2025.2,2024.5,3.45117718]
[1772133464119,2.26270709,2025.2,2024.5,3.45117718]
[1772133464326,1.02825593,2025.1,2024.5,1.171]
[1772133464508,1.02825593,2025.1,2024.5,2.40586913]
[1772133466000,2.26280477,2025.1,2024.5,2.40586913]
[1772133467626,0.002,2025.3,2024.6,1.04531189]
[1772133467929,0.002,2025.3,2024.7,1.04531189]
[1772133468131,0.002,2025.3,2024.8,1.23468984]
[1772133468517,4.84460628,2025.8,2025.0,1.04531189]
[1772133468714,1.02825593,2026.9,2025.7,1.36729616]
[1772133468903,1.02825593,2027.4,2026.2,3.72976626]
[1772133469102,1.02825593,2027.4,2026.7,1.36729616]
[1772133469410,1.02825593,2026.8,2025.9,1.173]
[1772133469934,1.02825593,2027.1,2026.0,2.59946429]
[1772133470119,1.23334977,2027.0,2026.1,1.23389763]
[1772133470323,1.02825593,2026.9,2026.0,1.3985544]
[1772133470630,1.02825593,2026.9,2025.9,2.40699035]
[1772133471306,1.02825593,2026.9,2025.5,2.68445437]
[1772133471514,1.02825593,2026.5,2025.6,1.23416183]
[1772133472129,2.26197089,2026.4,2025.6,0.18685624]
[1772133472427,2.26197089,2026.4,2025.6,1.5541524]
[1772133472428,1.02825593,2026.4,2025.6,1.5541524]
[1772133472814,19.32603861,2027.4,2025.6,1.5541524]
[1772133472815,1.02825593,2027.2,2026.0,1.04193731]
[1772133473319,1.02825593,2027.2,2026.1,0.18685624]
[1772133474434,1.02825593,2027.0,2026.1,1.23389763]
[1772133474928,1.02825593,2027.0,2026.2,0.18685624]
[1772133479014,1.02825593,2027.0,2026.3,1.23377584]
[1772133479333,2.26146256,2027.3,2026.5,1.36729616]
[1772133479535,2.26146256,2027.3,2026.3,2.2667144]
[1772133480026,1.02825593,2027.2,2026.3,2.2667144]
[1772133480752,4.9322077,2027.5,2026.5,1.21682483]
[1772133480753,2.26134287,2027.5,2026.5,1.21682483]
[1772133481038,1.02825593,2027.4,2026.4,0.18685624]
[1772133481233,1.02825593,2027.2,2026.1,2.40285403]
[1772133481621,1.03025593,2026.8,2026.1,2.40285403]
[1772133481939,1.03025593,2026.8,2026.1,1.169]
[1772133482159,1.02825593,2026.7,2025.7,0.001]
[1772133482317,1.02825593,2026.7,2025.7,1.23512091]
[1772133483121,1.02825593,2026.7,2025.7,0.001]
[1772133483122,1.02825593,2026.5,2025.7,0.001]
[1772133483359,1.02825593,2026.4,2025.7,0.001]
[1772133485540,1.02825593,2026.2,2025.7,0.001]
[1772133485938,1.23365408,2026.5,2025.7,0.001]
[1772133486247,1.02825593,2026.6,2025.9,1.36729616]
[1772133486469,2.26185346,2026.6,2025.9,1.36729616]
[1772133486942,2.26185346,2026.6,2025.8,1.02118354]
[1772133487662,2.26185346,2026.6,2025.9,1.23401944]
[1772133487966,1.02825593,2026.5,2025.7,0.001]
[1772133488121,1.02825593,2026.5,2025.7,1.23513521]
[1772133489073,1.02825593,2026.5,2025.7,0.001]
[1772133489293,1.02825593,2026.5,2025.7,1.23513478]
[1772133490172,2.26193169,2026.5,2025.7,1.23513478]
[1772133490545,1.23355278,2026.7,2025.8,2.369728]
[1772133491236,2.22956953,2026.7,2025.9,0.18685624]
[1772133492373,2.22956953,2026.7,2026.0,1.23395853]
[1772133493255,4.93588644,2026.8,2026.0,1.23395853]
[1772133493256,0.002,2026.8,2026.1,2.369728]
[1772133493451,0.002,2026.8,2026.3,2.369728]
[1772133493651,0.002,2026.8,2026.1,0.18685624]
[1772133495081,0.002,2026.8,2026.2,1.23383673]
[1772133495291,0.002,2026.8,2026.3,1.00243184]
[1772133495449,0.002,2026.7,2026.6,1.36729616]
[1772133495790,1.23314654,2027.4,2026.6,1.36729616]
[1772133496141,1.23314654,2027.4,2026.6,2.369728]
[1772133497048,1.23314654,2027.4,2026.7,1.23353234]
[1772133497049,0.99601675,2027.4,2026.7,1.23353234]
[1772133497976,0.99601675,2027.4,2026.6,2.23597612]
[1772133498689,0.99601675,2027.4,2026.5,4.93450013]
[1772133498690,0.99601675,2027.4,2026.3,2.36933522]
[1772133499154,2.22918401,2027.3,2026.4,2.23575402]
[1772133499846,0.99601675,2027.2,2026.2,1.23383673]
[1772133500774,0.99601675,2027.2,2026.1,1.23386393]
[1772133501359,0.99601675,2027.0,2026.1,1.23386393]
[1772133502776,0.99601675,2027.0,2026.1,2.23028398]
[1772133503453,0.99601675,2027.0,2026.2,0.99642005]
[1772133504672,0.99601675,2027.3,2026.4,0.99362434]
[1772133504879,0.99601675,2027.3,2026.6,1.36729616]
[1772133505061,0.99601675,2027.3,2026.4,0.99362434]
[1772133505962,0.99601675,2027.3,2026.3,1.23377584]
[1772133506160,0.99601675,2027.3,2026.4,0.99223167]
[1772133506364,0.99601675,2027.3,2026.5,2.35952783]
[1772133507280,1.2331468,2027.4,2026.7,0.99083057]
[1772133507668,0.002,2027.1,2026.7,0.99083057]
[1772133508471,2.22904715,2027.6,2026.9,0.98805]
[1772133508683,2.23104715,2027.6,2026.9,0.98805]
[1772133510183,0.99601675,2027.5,2026.9,2.22141536]
[1772133510483,0.99601675,2027.5,2026.9,1.23336536]
[1772133512189,1.23310644,2027.4,2026.9,1.23336536]
[1772133512364,2.23104058,2027.6,2026.9,0.98394143]
[1772133512761,0.99801675,2027.6,2026.9,0.98394143]
[1772133512960,2.23100774,2027.6,2026.9,0.98394143]
[1772133513157,2.23100774,2027.6,2027.2,0.98255647]
[1772133513158,0.002,2027.6,2027.2,0.98255647]
[1772133514577,0.002,2027.6,2027.3,1.23316726]
[1772133514995,1.23286689,2027.8,2027.3,1.23316726]
[1772133515375,0.99601675,2027.7,2027.1,1.23324125]
[1772133516079,0.99601675,2027.7,2027.0,2.21310017]
[1772133516990,0.99601675,2027.7,2026.6,0.97706643]
[1772133516991,1.02104227,2027.5,2026.6,0.97706643]
[1772133517167,1.02104227,2027.5,2026.6,2.21065964]
[1772133517581,1.02104227,2027.5,2026.7,0.97706643]
[1772133518989,2.25412527,2027.5,2026.9,0.97433376]
[1772133520076,2.57773332,2027.7,2027.0,0.97296473]
[1772133520077,2.21045079,2027.7,2027.0,0.97296473]
[1772133520864,2.21045079,2027.7,2026.9,1.36829616]
[1772133520865,0.002,2027.4,2026.9,1.36829616]
[1772133521092,0.002,2027.4,2027.0,1.23334977]
[1772133521486,0.002,2027.4,2026.9,2.60166759]
[1772133521795,0.002,2027.4,2026.9,0.001]
[1772133522089,1.23292588,2027.7,2027.0,0.97024073]
[1772133522280,1.23291598,2027.8,2027.0,0.97024073]
[1772133522663,2.21039946,2027.8,2027.0,0.97024073]
[1772133522991,0.97748348,2027.7,2027.0,0.97024073]
[1772133523378,0.97748348,2027.5,2026.9,1.23440546]
[1772133523686,2.21023176,2028.0,2027.3,0.97786812]
[1772133523867,0.97748348,2027.9,2027.1,0.97786812]
[1772133524391,1.23274828,2028.0,2027.1,0.97786812]
[1772133524584,2.21014123,2028.2,2027.4,0.97786812]
[1772133525503,4.92978009,2028.5,2027.8,0.97786812]
[1772133525504,3.58703183,2028.4,2027.8,0.97786812]
[1772133525794,3.58703183,2028.4,2027.4,6.29947865]
[1772133525795,0.97748348,2028.3,2027.6,0.97786812]
[1772133526169,0.97748348,2028.3,2027.3,3.57830006]
[1772133526373,0.97748348,2028.3,2027.1,2.3982804]
[1772133526574,0.97748348,2028.3,2027.1,2.14286812]
[1772133526805,0.97748348,2028.3,2027.1,1.165]
[1772133527185,0.97748348,2028.0,2026.9,0.97886812]
[1772133527373,0.97748348,2027.6,2026.9,0.001]
[1772133529572,0.97748348,2027.4,2026.9,0.001]
[1772133529986,0.97748348,2027.4,2026.7,0.001]
[1772133530193,0.97748348,2027.2,2026.4,1.163]
[1772133530613,0.97748348,2027.2,2026.4,3.37458162]
[1772133530907,0.97748348,2027.2,2026.5,0.97786812]
[1772133532194,2.21077241,2027.1,2026.4,1.163]
[1772133532515,0.97748348,2027.0,2026.4,1.163]
[1772133534125,1.23341062,2026.9,2026.4,1.163]
[1772133534723,1.23341062,2026.9,2026.6,0.001]
[1772133534930,0.97748348,2026.8,2026.6,0.001]
[1772133535228,1.23341062,2026.9,2026.3,0.001]
[1772133536828,0.97748348,2026.8,2026.3,0.001]
[1772133537127,0.97748348,2026.8,2026.0,0.001]
[1772133537526,0.97748348,2026.6,2026.0,0.001]
[1772133538234,3.5858941,2026.9,2026.0,0.97886812]
[1772133538900,3.5858941,2026.9,2026.1,2.21176575]
[1772133541133,2.2108941,2026.9,2026.1,2.21176575]